Workbook

Sheet Пречене
C1: АДИТИВНО И МУЛТИПЛИКАТИВНО ПРЕЧЕНЕ | AD1: Y St A.s | AE1: X ug /L | AF1: Y matrix
C2: Multiplicative | H2: МУЛТИПЛИКАТИВНО | J2: =IF(M11<O11,"Calibration is OK","INTERFERENCE") -> Calibration is OK | AD2: 0 | AE2: 0 | AF2: =AD2*0.1*$D$3+0.01*$D$7 -> 0
C3: b1 (10) | D3: =C4*0.2 -> 10 | H3: АДИТИВНО | J3: =IF(M12<O12,"Calibration is OK","INTERFERENCE") -> Calibration is OK | AD3: 0.081 | AE3: 20 | AF3: 0.081
C4: 50 | AA4: =SLOPE(AF1:AF7,AE1:AE7) -> 0.004289230769 | AD4: 0.23 | AE4: 50 | AF4: 0.23
H5: ∆ (Cst-Cmx) = | I5: =I9-I8 -> 0 | J5: ppb | AA5: =INTERCEPT(AF3:AF7,AE3:AE7) -> 0.007426829268 | AD5: 0.4055 | AE5: 100 | AF5: 0.4055
C6: Additive | H6: относителна ∆ %= | I6: =(I9-I8)/I9 -> 0 | AD6: 0.72 | AE6: 150 | AF6: 0.72
C7: b0 (0) | D7: 0 | X7: 0.01 | AD7: 0.82 | AE7: 200 | AF7: 0.82
H8: C_st= | I8: =AC15 -> 103.6954085 | J8: ppb | AD8: =SLOPE(AD3:AD7,AE3:AE7) -> 0.004268011257 | AE8: b1 и b1m | AF8: =SLOPE(AF3:AF7,AE3:AE7) -> 0.004268011257
H9: C_mx= | I9: =AC18 -> 103.6954085 | J9: ppb | AD9: =INTERCEPT(AD3:AD7,AE3:AE7) -> 0.007426829268 | AE9: b0 и b0m | AF9: =INTERCEPT(AF3:AF7,AE3:AE7) -> 0.007426829268
K11: difference | b1-b1' |= | M11: =ABS(K20-K14) -> 1.734723476e-18 | N11: Δb1u_d= | O11: =SQRT(K15^2+K21^2) -> 0.0003631748826
K12: difference | b0-b0' |= | M12: =ABS(L20-L14) -> 1.665334537e-16 | N12: Δb0u_d= | O12: =SQRT(L15^2+L21^2) -> 0.0407123201 | AB12: 150
AB13: Y samp | AC13: X | AD13: Y1 | AE13: X | AF13: Y2
K14: =LINEST(AF2:AF7,AE2:AE7,1,1) -> 0.004289230769 | L14: 0.00435 | AB14: =X7*0.3*AB12 -> 0.45 | AC14: 0.01 | AD14: =AB14 -> 0.45 | AE14: =AC15 -> 103.6954085 | AF14: 0
K15: 0.0002568034222 | L15: 0.02878795762 | AC15: =(AB14-AF9)/AF8 -> 103.6954085 | AD15: =AB14 -> 0.45 | AE15: =AC15 -> 103.6954085 | AF15: =AB14 -> 0.45
K16: 0.9858642166 | L16: 0.04472608407 | AB16: Y samp | AC16: X | AD16: Y1 | AE16: X | AF16: Y2
K17: 278.9698132 | L17: 4 | AB17: =AB14 -> 0.45 | AC17: 0.01 | AD17: =AB17 -> 0.45 | AE17: =AC18 -> 103.6954085 | AF17: 0
K18: 0.5580575179 | L18: 0.008001690385 | AC18: =(AB17-AD9)/AD8 -> 103.6954085 | AD18: =AB17 -> 0.45 | AE18: =AC18 -> 103.6954085 | AF18: =AB17 -> 0.45
K20: =LINEST(AD2:AD7,AE2:AE7,1,1) -> 0.004289230769 | L20: 0.00435 | AF20: =CORREL(AD2:AD7,AE2:AE7) -> 0.9929069526
K21: 0.0002568034222 | L21: 0.02878795762 | AF21: =AF20*AF20 -> 0.9858642166
K22: 0.9858642166 | L22: 0.04472608407
K23: 278.9698132 | L23: 4
K24: 0.5580575179 | L24: 0.008001690385
X679: Разработка за учебни цели ВК

Sheet Horwitz
A1: Хорвиц - тромпет и променено уравнение на Хорвиц
G2: Horwitz - 1982
Y7: C m/m | Z7: +RSD | AA7: -RDS | AB7: SD
Y8: 1 | Z8: =2^(1-(0.5*LOG(Y8))) -> 2 | AA8: =-Z8 -> -2 | AB8: =0.02*(Y8^0.8495) -> 0.02 | AC8: =AB8/Y8 -> 0.02
Y9: 0.1 | Z9: =2^(1-(0.5*LOG(Y9))) -> 2.828427125 | AA9: =-Z9 -> -2.828427125 | AB9: =0.02*(Y9^0.8495) -> 0.00282832945 | AC9: 0.0282832945
Y10: 0.001 | Z10: 5.656854249 | AA10: -5.656854249 | AB10: 5.656268222e-05 | AC10: 0.05656268222
Y11: 0.0001 | Z11: 8 | AA11: -8 | AB11: 7.998894995e-06 | AC11: 0.07998894995
Y12: 1e-05 | Z12: 11.3137085 | AA12: -11.3137085 | AB12: 1.131175514e-06 | AC12: 0.1131175514
Y13: 1e-06 | Z13: 16 | AA13: -16 | AB13: 1.59966851e-07 | AC13: 0.159966851
Y14: 1e-07 | Z14: =2^(1-(0.5*LOG(Y14))) -> 22.627417 | AA14: -22.627417 | AB14: 2.262194779e-08 | AC14: 0.2262194779
Y15: 1e-08 | Z15: =2^(1-(0.5*LOG(Y15))) -> 32 | AA15: -32 | AB15: 3.199116057e-09 | AC15: 0.3199116057
Y16: 1e-09 | Z16: 45.254834 | AA16: -45.254834 | AB16: 4.52407708e-10 | AC16: 0.452407708
Y17: 1e-10 | Z17: 64 | AA17: -64 | AB17: 6.397790219e-11 | AC17: 0.6397790219
Y18: 1e-12 | Z18: =2^(1-(0.5*LOG(Y18))) -> 128 | AA18: =-Z18 -> -128 | AB18: 1.279469671e-12 | AC18: =AB18/Y18 -> 1.279469671
G20: 1.8
G21: 1e-09
C22: =C23 -> 0.01 | F22: Задай концентрация като отношение | AD22: C (μg/kg) | AE22: α
A23: 1 | B23: C(m/M)= | C23: =0.1*A23*POWER(10,-D23) -> 0.01 | D23: 1 | F23: C(m/M)= | G23: =G21 -> 1e-09 | H23: стандартен ХОРВИЦ | AD23: ≤ 50 | AE23: 0,2
B24: (+-RSD)= | C24: =IF(C23<10^-7,0.22*C23,IF(C23>0.138,0.01*(C23^0.5),0.02*(C23^0.8495)))/C23*100 -> 3.999723739 | F24: (+-RSD)= | G24: =IF(G23<10^-7,0.22*G23,IF(G23>0.138,0.01*(G23^0.5),0.02*(G23^0.8495)))/G23*100 -> 22 | H24: =2^(1-(0.5*LOG(G23))) -> 45.254834 | AD24: 51—500 | AE24: 0,18
C25: =-C24 -> -3.999723739 | F25: променен Хорвиц | AD25: 501—1 000 | AE25: 0,15
A26: "=IF(C23<10^-7,0.22*C23,IF(C23>0.138,0.01*(C23^0.5),0.02*(C23^0.8495)))/C23*100"
B53: X1= | C53: =#REF! ->  | E53: Y1= | F53: 0
B54: X2= | C54: =#REF! ->  | E54: Y2= | F54: =#REF! -> 
B56: X1= | C56: 0 | E56: Y1= | F56: =#REF! -> 
B57: X2= | C57: =#REF! ->  | E57: Y2= | F57: =#REF! -> 
C63: RSD% | D63: -RSD% | E63: S
B64: 1 | C64: =(E64/B64)*100 -> 1 | D64: =-C64 -> -1 | E64: =IF(B64<10^-7,0.22*B64,IF(B64>0.138,0.01*(B64^0.5),0.02*(B64^0.8495))) -> 0.01
B65: 0.8 | C65: 1.118033989 | D65: -1.118033989 | E65: 0.00894427191
B66: 0.6 | C66: 1.290994449 | D66: -1.290994449 | E66: 0.007745966692
B67: 0.5 | C67: 1.414213562 | D67: -1.414213562 | E67: 0.007071067812 | F67: =0.01*B67^0.5 -> 0.007071067812
B68: 0.4 | C68: 1.58113883 | D68: -1.58113883 | E68: 0.00632455532 | F68: =0.01*B68^0.5 -> 0.00632455532
B69: 0.2 | C69: 2.236067977 | D69: -2.236067977 | E69: 0.004472135955
B70: 0.18 | C70: 2.357022604 | D70: -2.357022604 | E70: 0.004242640687
B71: 0.16 | C71: 2.5 | D71: -2.5 | E71: 0.004
B72: 0.15 | C72: 2.581988897 | D72: -2.581988897 | E72: 0.003872983346
B73: 0.14 | C73: 2.672612419 | D73: -2.672612419 | E73: 0.003741657387
B74: 0.13 | C74: 2.718826668 | D74: -2.718826668 | E74: 0.003534474669
B75: 0.01 | C75: 3.999723739 | D75: -3.999723739 | E75: 0.0003999723739
B76: 0.001 | C76: 5.656268222 | D76: -5.656268222 | E76: 5.656268222e-05
B77: 0.0001 | C77: 7.998894995 | D77: -7.998894995 | E77: 7.998894995e-06
B78: 1e-05 | C78: 11.31175514 | D78: -11.31175514 | E78: 1.131175514e-06
B79: 1e-06 | C79: 15.9966851 | D79: -15.9966851 | E79: 1.59966851e-07
B80: 1e-07 | C80: 22.62194779 | D80: -22.62194779 | E80: 2.262194779e-08
B81: 1e-08 | C81: 22 | D81: -22 | E81: 2.2e-09
B82: 1e-09 | C82: 22 | D82: -22 | E82: 2.2e-10
B83: 1e-10 | C83: 22 | D83: -22 | E83: 2.2e-11
V681: Разработка за учебни цели ВК

Sheet Uf_target
A1: Максимална стандартна неопределеност
E4: Michael Thompson and Roger Wood - Using uncertainty to predict and specify the performance of analytical method
E5: LOD | F5: RSD% | G5: C | I5: Horwiz RSD% | J5: Max u_ | AD5: 1e-08 | AE5: =IF(AD5<10^-7,0.22*AD5,IF(AD5>0.138,0.01*(AD5^0.5),0.02*(AD5^0.8495))) -> 2.2e-09 | AF5: =AE5/AD5 -> 0.22
E6: =E10*H6 -> 4e-08 | F6: =F10*100 -> 18 | G6: =G10*H6 -> 7.3e-06 | H6: =10^-H7 -> 1e-06 | I6: =IF(G6<10^-7,0.22*G6,IF(G6>0.138,0.01*(G6^0.5),0.02*(G6^0.8495)))/G6*100 -> 11.86041554 | J6: =I6*G6/100 -> 8.658103345e-07 | AD6: 2e-07 | AE6: 4.076195235e-08 | AF6: 0.2038097618
H7: 6 | AD7: 3e-07 | AE7: 5.752339389e-08 | AF7: 0.1917446463
E8: 4 | F8: 18 | G8: 73 | I8: 488 | AD8: 5e-07 | AE8: 8.877792996e-08 | AF8: 0.1775558599
E9: P | F9: Q | G9: C | I9: RSD | AD9: 1e-06 | AE9: 1.59966851e-07 | AF9: 0.159966851
E10: =E8*0.01 -> 0.04 | F10: =F8*0.01 -> 0.18 | G10: =G8*0.1 -> 7.3 | I10: =I8*0.1 -> 48.8 | AD10: 1.1e-06 | AE10: 1.734574996e-07 | AF10: 0.157688636
D11: u | E11: =SQRT((E10)+(F10*(G10^2))) -> 3.10357858 | AD11: 1.2e-06 | AE11: 1.867645579e-07 | AF11: 0.1556371316
F12: C | G12: u_r | H12: u_fit | I12: u_r - u_fit | J12: FFP неопределеност | AD12: 1e-06 | AE12: 1.59966851e-07 | AF12: 0.159966851
A13: u | B13: =SQRT((($E$6^2)/4)+($F$10*((D13*$H$6)^2))) -> 2.04450483e-08 | D13: 0.01 | F13: =D13*$H$6 -> 1e-08 | G13: =B13 -> 2.04450483e-08 | H13: =F13*$I$10/100 -> 4.88e-09 | I13: =G13-H13 -> 1.55650483e-08 | J13: Uf неопределеност на метода | AD13: 1e-05 | AE13: 1.131175514e-06 | AF13: 0.1131175514
B14: 2.915475947e-08 | D14: 0.05 | F14: 5e-08 | G14: 2.915475947e-08 | H14: 2.44e-08 | I14: 4.754759474e-09 | AD14: 0.0001 | AE14: 7.998894995e-06 | AF14: 0.07998894995
B15: 4.69041576e-08 | D15: 0.1 | F15: 1e-07 | G15: 4.69041576e-08 | H15: 4.88e-08 | I15: -1.895842402e-09 | AD15: 0.001 | AE15: 5.656268222e-05 | AF15: 0.05656268222
B16: 6.401562309e-08 | D16: 0.1433333333 | F16: 1.433333333e-07 | G16: 6.401562309e-08 | H16: 6.994666667e-08 | I16: -5.931043574e-09 | K16: C (μg/kg) | L16: α | AD16: 0.01 | AE16: 0.0003999723739 | AF16: 0.03999723739
B17: 8.236807634e-08 | D17: 0.1883333333 | F17: 1.883333333e-07 | G17: 8.236807634e-08 | H17: 9.190666667e-08 | I17: -9.538590326e-09 | K17: ≤ 50 | L17: 0,2 | AD17: 0.015 | AE17: 0.0005644422576 | AF17: 0.03762948384
B18: 1.009950494e-07 | D18: 0.2333333333 | F18: 2.333333333e-07 | G18: 1.009950494e-07 | H18: 1.138666667e-07 | I18: -1.287161728e-08 | K18: 51—500 | L18: 0,18 | AD18: 0.02 | AE18: 0.0007207007549 | AF18: 0.03603503775
B19: 1.197685268e-07 | D19: 0.2783333333 | F19: 2.783333333e-07 | G19: 1.197685268e-07 | H19: 1.358266667e-07 | I19: -1.605813992e-08 | K19: 501—1 000 | L19: 0,15 | AD19: 0.025 | AE19: 0.0008711241084 | AF19: 0.03484496434
B20: 1.386290013e-07 | D20: 0.3233333333 | F20: 3.233333333e-07 | G20: 1.386290013e-07 | H20: 1.577866667e-07 | I20: -1.915766537e-08 | K20: 1 001—10 000 | L20: 0,12 | AD20: 0.03 | AE20: 0.001017055146 | AF20: 0.0339018382
B21: 1.575452316e-07 | D21: 0.3683333333 | F21: 3.683333333e-07 | G21: 1.575452316e-07 | H21: 1.797466667e-07 | I21: -2.220143507e-08 | K21: > 10 000 | L21: 0,1 | AD21: 0.035 | AE21: 0.001159353291 | AF21: 0.03312437976
B22: 1.764992918e-07 | D22: 0.4133333333 | F22: 4.133333333e-07 | G22: 1.764992918e-07 | H22: 2.017066667e-07 | I22: -2.520737488e-08 | AD22: 0.04 | AE22: 0.001298613634 | AF22: 0.03246534086
B23: 8.103468393e-06 | D23: 19.1 | F23: 1.91e-05 | G23: 8.103468393e-06 | H23: 9.3208e-06 | I23: -1.217331607e-06 | AD23: 0.045 | AE23: 0.001435271384 | AF23: 0.03189491965
B24: 8.909567891e-06 | D24: 21 | F24: 2.1e-05 | G24: 8.909567891e-06 | H24: 1.0248e-05 | I24: -1.338432109e-06 | AD24: 0.05 | AE24: 0.001569657915 | AF24: 0.0313931583
B25: 9.715667759e-06 | D25: 22.9 | F25: 2.29e-05 | G25: 9.715667759e-06 | H25: 1.11752e-05 | I25: -1.459532241e-06 | AD25: 0.055 | AE25: 0.001702033487 | AF25: 0.0309460634
B26: 1.052176791e-05 | D26: 24.8 | F26: 2.48e-05 | G26: 1.052176791e-05 | H26: 1.21024e-05 | I26: -1.580632088e-06 | AD26: 0.06 | AE26: 0.001832607598 | AF26: 0.03054345997
B27: 1.132786829e-05 | D27: 26.7 | F27: 2.67e-05 | G27: 1.132786829e-05 | H27: 1.30296e-05 | I27: -1.70173171e-06 | AD27: 0.065 | AE27: 0.001961552301 | AF27: 0.0301777277
AD28: 0.07 | AE28: 0.002089011259 | AF28: 0.02984301798
AD29: 0.075 | AE29: 0.00221510613 | AF29: 0.0295347484
AD30: 0.08 | AE30: 0.002339941175 | AF30: 0.02924926469
AD31: 0.085 | AE31: 0.00246360668 | AF31: 0.028983608
AD32: 0.09 | AE32: 0.00258618154 | AF32: 0.02873535045
AD33: 0.095 | AE33: 0.002707735248 | AF33: 0.02850247629
AD34: 0.1 | AE34: 0.00282832945 | AF34: 0.0282832945
AD35: 0.12 | AE35: 0.003302132261 | AF35: 0.02751776884
AD36: 0.13 | AE36: 0.003534474669 | AF36: 0.02718826668
AD37: 0.1385 | AE37: 0.003721558813 | AF37: 0.02687046075
AD38: 0.14 | AE38: 0.003741657387 | AF38: 0.02672612419
AD39: 0.15 | AE39: 0.003872983346 | AF39: 0.02581988897
AD40: 0.16 | AE40: 0.004 | AF40: 0.025
AD41: 0.17 | AE41: 0.004123105626 | AF41: 0.0242535625
AD42: 0.18 | AE42: 0.004242640687 | AF42: 0.02357022604
AD43: 0.19 | AE43: 0.004358898944 | AF43: 0.02294157339
AD44: 0.2 | AE44: 0.004472135955 | AF44: 0.02236067977
AD45: 0.21 | AE45: 0.004582575695 | AF45: 0.02182178902
AD46: 0.22 | AE46: 0.00469041576 | AF46: 0.02132007164
AD47: 0.23 | AE47: 0.004795831523 | AF47: 0.02085144141
AD48: 0.24 | AE48: 0.004898979486 | AF48: 0.02041241452
AD49: 0.25 | AE49: 0.005 | AF49: 0.02
AD50: 0.26 | AE50: 0.005099019514 | AF50: 0.01961161351
AD51: 0.27 | AE51: 0.005196152423 | AF51: 0.01924500897
AD52: 0.28 | AE52: 0.005291502622 | AF52: 0.01889822365
AD53: 0.29 | AE53: 0.005385164807 | AF53: 0.01856953382
AD54: 0.3 | AE54: 0.005477225575 | AF54: 0.01825741858
AD55: 0.31 | AE55: 0.005567764363 | AF55: 0.0179605302
AD56: 0.32 | AE56: 0.005656854249 | AF56: 0.01767766953
AD57: 0.33 | AE57: 0.005744562647 | AF57: 0.0174077656
AD58: 0.34 | AE58: 0.005830951895 | AF58: 0.01714985851
AD59: 0.35 | AE59: 0.005916079783 | AF59: 0.01690308509
AD60: 0.36 | AE60: 0.006 | AF60: 0.01666666667
AD61: 0.37 | AE61: 0.00608276253 | AF61: 0.01643989873
AD62: 0.38 | AE62: 0.006164414003 | AF62: 0.01622214211
AD63: 0.39 | AE63: 0.006244997998 | AF63: 0.01601281538
AD64: 0.4 | AE64: 0.00632455532 | AF64: 0.0158113883
AD65: 0.41 | AE65: 0.006403124237 | AF65: 0.01561737619
AD66: 0.42 | AE66: 0.006480740698 | AF66: 0.015430335
AD67: 0.43 | AE67: 0.006557438524 | AF67: 0.01524985703
AD68: 0.44 | AE68: 0.006633249581 | AF68: 0.01507556723
AD69: 0.45 | AE69: =IF(AD69<10^-7,0.22*AD69,IF(AD69>0.138,0.01*(AD69^0.5),0.02*(AD69^0.8495))) -> 0.006708203932 | AF69: =AE69/AD69 -> 0.01490711985
AD70: 0.46 | AE70: 0.006782329983 | AF70: 0.01474419562
AD71: 0.47 | AE71: 0.0068556546 | AF71: 0.01458649915
AD72: 0.48 | AE72: 0.00692820323 | AF72: 0.01443375673
AD73: 0.49 | AE73: 0.007 | AF73: 0.01428571429
AD74: 0.5 | AE74: 0.007071067812 | AF74: 0.01414213562
AD75: 0.51 | AE75: 0.007141428429 | AF75: 0.01400280084
AD76: 0.52 | AE76: 0.007211102551 | AF76: 0.01386750491
AD77: 0.53 | AE77: 0.007280109889 | AF77: 0.01373605639
V658: Разработка за учебни цели ВК
